bitfinex-derivatives/quotes_ETHF0:USTF0_20250520
["timestamp","ask_amount","ask_price","bid_price","bid_amount"]
[1747783064984,4.00297,2538.0,2537.9,0.78781]
[1747783065380,3.99552,2538.2,2537.9,1.970095]
[1747783065579,3.2078,2538.2,2538.1,0.78775]
[1747783065780,3.2078,2538.6,2538.0,4.5695]
[1747783065982,3.9954,2538.6,2538.1,1.365]
[1747783066178,4.73644,2539.1,2538.1,1.365]
[1747783066179,3.2078,2538.8,2538.2,2.14942]
[1747783066380,3.2078,2538.7,2538.2,5.35721]
[1747783066582,3.2078,2538.7,2538.4,0.78766]
[1747783066782,3.99539,2538.7,2538.5,1.3617]
[1747783066983,0.7876,2538.6,2538.5,1.3617]
[1747783067383,3.34303,2538.6,2538.1,0.6888]
[1747783067586,0.78777,2538.1,2537.9,0.78781]
[1747783067786,0.78778,2538.1,2537.9,0.78781]
[1747783067985,0.78771,2538.3,2538.1,0.78774]
[1747783068186,0.78768,2538.4,2538.2,1.3782]
[1747783068391,3.2078,2538.5,2538.4,0.78766]
[1747783068583,3.2078,2538.5,2538.4,2.757365]
[1747783068985,0.00529336,2539.0,2538.9,0.7875]
[1747783069180,3.99519,2539.3,2539.1,0.78744]
[1747783069387,3.2078,2539.3,2539.2,1.3782]
[1747783069592,3.2078,2539.3,2539.2,2.16561]
[1747783069784,3.2078,2539.3,2539.2,4.134695]
[1747783070088,0.78738,2539.3,2539.2,3.347285]
[1747783070389,1.96908501,2539.3,2538.8,3.2078]
[1747783070590,0.7134,2539.2,2538.9,1.3782]
[1747783070888,0.78739,2539.3,2538.9,1.3782]
[1747783071095,0.78747,2539.0,2538.9,1.3782]
[1747783071284,0.78742,2539.2,2538.9,3.2078]
[1747783071588,0.78744,2539.1,2539.0,3.99525]
[1747783071783,4.6087,2539.5,2538.9,3.2078]
[1747783072087,0.78753,2538.8,2538.7,3.21371506]
[1747783072479,0.78753,2538.8,2538.7,1.97539005]
[1747783072784,14.645,2539.4,2538.7,1.97539005]
[1747783072986,3.2078,2538.9,2538.7,0.00591506]
[1747783073190,2.07013,2538.8,2538.7,0.00591506]
[1747783073385,2.78353,2538.8,2538.7,1.97539005]
[1747783073585,2.78353,2538.8,2538.7,0.00591506]
[1747783073791,4.753005,2538.8,2538.7,0.00591506]
[1747783074887,4.753005,2538.8,2538.7,5.06e-06]
[1747783075189,9.753005,2538.8,2538.7,5.06e-06]
[1747783075493,0.78795,2537.5,2537.4,0.78796]
[1747783075683,0.78797,2537.4,2537.3,3.2078]
[1747783075878,0.78796,2537.5,2537.3,3.99578]
[1747783076085,0.78796,2537.5,2537.3,3.2078]
[1747783076286,0.78796,2537.5,2537.3,5.9663]
[1747783076588,0.78793,2537.6,2537.4,0.78797]
[1747783076786,0.00591506,2537.7,2537.6,0.78791]
[1747783077090,0.00591506,2537.7,2537.6,3.99571]
[1747783077289,0.6893,2538.4,2538.3,0.78769]
[1747783077588,0.78765,2538.5,2538.4,0.78766]
[1747783077794,0.08486477,2538.6,2538.5,0.78763]
[1747783078290,0.08486477,2538.6,2538.5,2.75726]
[1747783078481,0.08486477,2538.6,2538.5,4.04566]
[1747783078887,0.87246477,2538.6,2538.5,3.25803]
[1747783079689,2.84209477,2538.6,2538.5,1.2884]
[1747783080191,2.05449477,2538.6,2538.5,2.07603]
[1747783080393,0.08486477,2538.6,2538.5,3.25803]
[1747783080691,0.87246477,2538.6,2538.5,3.25803]
[1747783080894,2.84209477,2538.6,2538.5,1.2884]
[1747783081886,0.87246477,2538.6,2538.5,3.25803]
[1747783082189,0.08486477,2538.6,2538.5,4.04566]
[1747783082490,0.87246477,2538.6,2538.5,3.25803]
[1747783082691,0.87246477,2538.6,2538.5,4.04566]
[1747783082891,0.08486477,2538.6,2538.5,4.04566]
[1747783083094,0.87246477,2538.6,2538.5,4.04566]
[1747783083295,0.87246477,2538.6,2538.5,3.25803]
[1747783083495,0.87246477,2538.6,2538.5,4.04566]
[1747783084197,0.08486477,2538.6,2538.5,4.04566]
[1747783084590,0.08486477,2538.6,2538.5,3.25803]
[1747783084793,2.84209477,2538.6,2538.5,1.2884]
[1747783085093,2.84209477,2538.6,2538.5,1.60351138]
[1747783085598,2.05449477,2538.6,2538.5,2.39114138]
[1747783086485,2.84209477,2538.6,2538.5,1.60351138]
[1747783086686,2.84209477,2538.6,2538.5,2.39114138]
[1747783086891,2.84209477,2538.6,2538.5,0.31511138]
[1747783087291,0.08486477,2538.6,2538.5,2.28474138]
[1747783087493,0.08486477,2538.6,2538.5,3.07237138]
[1747783087691,0.08486477,2538.6,2538.5,4.46277138]
[1747783087892,0.08486477,2538.6,2538.5,5.90497138]
[1747783088498,0.7217,2539.2,2539.1,0.78744]
[1747783088900,0.676,2539.4,2539.3,0.78738]
[1747783089094,2.64501001,2539.4,2539.3,3.99518]
[1747783089295,0.676,2539.4,2539.3,3.99518]
[1747783089594,2.64501001,2539.4,2539.3,5.96419]
[1747783089802,5.17566,2540.1,2539.3,10.17681]
[1747783090002,0.78728,2539.7,2539.6,0.78727]
[1747783090504,0.78723,2539.8,2539.7,0.78724]
[1747783090705,0.78723,2539.8,2539.7,2.14524]
[1747783091006,2.75593001,2539.8,2539.7,1.358]
[1747783091305,0.78726,2539.7,2539.6,0.31511138]
[1747783091806,2.75603501,2539.7,2539.6,1.67311138]
[1747783091990,3.99506,2539.7,2539.6,0.31511138]
[1747783092194,5.96383501,2539.7,2539.6,0.31511138]
[1747783093003,2.75603501,2539.7,2539.6,0.31511138]
[1747783093197,2.0817,2539.9,2539.6,2.28388638]
[1747783093403,2.0817,2539.9,2539.6,0.31511138]
[1747783093404,7.25820001,2539.9,2539.6,0.31511138]
[1747783093597,0.78726,2539.7,2539.6,0.31511138]
[1747783094003,2.75603501,2539.7,2539.6,0.31511138]
[1747783096108,1.96877501,2539.7,2539.6,0.31511138]
[1747783096316,3.23667501,2539.7,2539.6,0.31511138]
[1747783096503,4.02393501,2539.7,2539.6,0.31511138]
[1747783096703,3.23667501,2539.7,2539.6,0.31511138]
[1747783097209,3.23667501,2539.7,2539.6,1.10240138]
[1747783097708,4.02393501,2539.7,2539.6,0.31511138]
[1747783098510,0.6872,2539.9,2539.6,0.31511138]
[1747783098711,2.65590001,2539.9,2539.7,2.07013]
[1747783098917,0.6872,2539.9,2539.8,1.3321]
[1747783099101,0.6872,2539.9,2539.8,2.11933]
[1747783099303,3.44302,2539.9,2539.8,1.3321]
[1747783099515,0.7872,2539.9,2539.8,3.30072]
[1747783099817,0.7872,2539.9,2539.7,0.31511138]
[1747783099818,1.96862,2539.9,2539.7,0.31511138]
[1747783099999,6.03053,2539.8,2539.7,0.31511138]
[1747783100199,2.82273,2539.8,2539.7,0.31511138]
[1747783100404,4.79143001,2539.8,2539.7,0.31511138]
[1747783100604,0.78732,2539.5,2539.4,0.2523217]
[1747783100807,24.80573,2539.5,2538.9,0.00591506]
[1747783101104,3.99525,2539.1,2539.0,0.2511106]
[1747783101301,0.78757,2538.7,2538.6,0.51592042]
[1747783101505,3.99537,2538.7,2538.6,0.51592042]
[1747783101707,10.96492,2538.7,2538.6,0.51592042]
[1747783102308,10.99215279,2538.7,2538.6,0.51592042]
[1747783102508,0.78763,2538.5,2538.4,0.00591506]
[1747783102709,15.41563,2538.5,2538.4,0.00591506]
[1747783102911,17.385335,2538.5,2538.4,0.00591506]
[1747783103406,2.78456779,2538.5,2538.4,0.00591506]
[1747783103607,0.81486279,2538.5,2538.4,0.00591506]
[1747783103818,2.78456779,2538.5,2538.4,0.00591506]
[1747783104004,4.13036779,2538.5,2538.4,0.00591506]
[1747783105713,12.33816779,2538.5,2538.4,0.00591506]
[1747783106311,7.33816779,2538.5,2538.4,0.00591506]
[1747783106514,21.96816779,2538.5,2538.4,0.00591506]
[1747783106716,18.76236779,2538.5,2538.4,0.00591506]
[1747783107114,18.7712499,2538.5,2538.4,0.00591506]
[1747783107314,21.9790499,2538.5,2538.4,0.00591506]
[1747783108622,26.9790499,2538.5,2538.4,0.00591506]
[1747783108911,26.9790499,2538.5,2538.4,5.06e-06]
[1747783109115,21.9790499,2538.5,2538.4,5.06e-06]
[1747783109316,26.9790499,2538.5,2538.4,5.06e-06]
[1747783109714,18.7722499,2538.5,2538.4,5.06e-06]
[1747783110516,7.3470499,2538.5,2538.4,5.06e-06]
[1747783110713,21.9800499,2538.5,2538.4,5.06e-06]
[1747783112417,26.9800499,2538.5,2538.4,5.06e-06]
[1747783114221,0.78791,2537.6,2537.5,3.2078]
[1747783114414,0.78794,2537.5,2537.4,1.3943]
[1747783114817,2.75842,2537.5,2537.4,1.3943]
[1747783115014,4.08922,2537.5,2537.4,1.3943]
[1747783115425,0.78797,2537.4,2537.3,3.2078]
[1747783115621,0.788,2537.3,2537.2,0.00591506]
[1747783115921,0.788,2537.3,2536.7,0.51592042]
[1747783115922,0.78816,2536.8,2536.7,0.51592042]
[1747783116125,0.7881,2537.0,2536.9,1.3943]
[1747783116418,0.81533279,2537.0,2536.9,4.6021]
[1747783116623,2.7862028,2537.0,2536.9,4.6021]
[1747783117026,0.02723279,2537.0,2536.9,12.3611]
[1747783117826,0.78799,2537.4,2537.2,0.78801]
[1747783118031,3.25277506,2537.7,2537.3,2.1756]
[1747783118223,0.98240536,2538.3,2538.2,0.78772]
[1747783118524,1.29065779,2538.7,2538.6,0.7876]
[1747783118711,1.29065779,2538.7,2538.6,5.17735]
[1747783118915,6.46800779,2538.7,2538.5,3.2078]
[1747783119113,7.25557779,2538.7,2538.6,1.362332]
[1747783119324,3.99546,2538.4,2538.3,0.00591506]
[1747783119724,5.965245,2538.4,2538.3,0.00591506]
[1747783120325,20.626513,2538.4,2538.3,0.00591506]
[1747783122429,20.651781,2538.4,2538.3,1.29691506]
[1747783122823,13.298,2539.2,2538.3,1.29691506]
[1747783122824,1.17040535,2539.1,2539.0,2.757265]
[1747783123032,1.17040535,2539.1,2539.0,5.939797]
[1747783123222,0.78734,2539.5,2539.2,0.78739]
[1747783123422,0.78734,2539.5,2539.3,5.152317]
[1747783123623,2.75635001,2539.5,2539.3,6.495717]
[1747783123829,0.78735,2539.4,2539.3,6.495717]
[1747783124227,2.75636001,2539.4,2539.3,6.495717]
[1747783124528,1.96901001,2539.4,2539.3,6.495717]
[1747783125117,1.99424546,2539.4,2539.3,7.283097]
[1747783125526,0.0504709,2539.4,2539.3,7.283097]
[1747783127629,14.633,2539.6,2539.5,0.78732]
[1747783127821,14.633,2539.6,2539.5,2.65613065]
[1747783128020,17.389145,2539.6,2539.5,1.944517]
[1747783128229,15.42029,2539.6,2539.5,1.944517]
[1747783128531,17.389145,2539.6,2539.5,3.259717]
[1747783128831,17.41438045,2539.6,2539.5,3.259717]
[1747783129028,17.41438045,2539.6,2539.5,4.047037]
[1747783129227,15.44552545,2539.6,2539.5,3.259717]
[1747783129427,15.44552545,2539.6,2539.5,4.047037]
[1747783129723,17.41438045,2539.6,2539.5,3.259717]
[1747783130328,0.02523545,2539.6,2539.5,3.259717]
[1747783130524,1.96676,2541.6,2540.0,3.2078]
[1747783130723,0.78676,2541.3,2541.2,3.2078]
[1747783131037,19.04256,2541.3,2541.2,3.90007228]
[1747783131222,21.01009501,2541.3,2541.2,3.90007228]
[1747783132230,5.43200105,2541.8,2541.2,10.84458928]
[1747783132415,0.11451,2541.5,2541.4,3.2078]
[1747783132814,2.86859,2541.5,2541.4,5.152317]
[1747783133019,2.86859,2541.5,2541.4,3.2078]
[1747783133625,18.62159,2541.5,2541.4,3.2078]
[1747783133933,18.61759,2541.5,2541.4,5.152317]
[1747783134133,2.86859,2541.5,2541.4,5.152317]
[1747783134322,2.86859,2541.5,2541.4,3.2078]
[1747783134522,18.61759,2541.5,2541.4,3.2078]
[1747783134923,0.90121,2541.5,2541.4,5.152317]
[1747783135224,18.61759,2541.5,2541.4,3.2078]
[1747783135424,0.7868,2541.2,2541.1,4.5243]
[1747783135819,2.868925,2541.2,2541.1,3.2078]
[1747783137437,18.615925,2541.2,2541.1,3.2078]
[1747783138437,0.90134,2541.1,2541.0,2.26e-06]
[1747783138627,2.98104,2541.1,2541.0,2.26e-06]
[1747783138832,9.94873,2541.1,2541.0,2.26e-06]
[1747783139031,0.11451,2540.7,2540.3,3.2078]
[1747783139236,0.90165,2540.1,2540.0,1.944517]
[1747783139435,16.64865,2540.1,2540.0,1.944517]
[1747783139729,0.78717,2540.0,2539.9,1.3796]
[1747783140236,2.755715,2540.0,2539.9,3.324117]
[1747783140438,0.00585959,2540.2,2539.9,3.324117]
[1747783140726,0.00585959,2540.2,2540.1,5.152317]
[1747783140932,0.00585959,2540.2,2540.1,5.939457]
[1747783141138,0.79296959,2540.2,2540.1,6.531917]
[1747783143033,0.7872,2539.9,2539.8,3.2078]
[1747783143233,0.7872,2539.9,2539.8,4.5642]
[1747783143428,2.87033,2539.9,2539.8,6.508717]
[1747783143735,2.87033,2539.9,2539.8,4.5642]
[1747783144029,18.61633,2539.9,2539.8,6.508717]
[1747783144234,18.61633,2539.9,2539.8,4.5642]
[1747783144642,18.61633,2539.9,2539.8,6.508717]
[1747783144939,0.09072436,2540.2,2540.0,0.78715]
[1747783145231,0.09072436,2540.2,2540.1,6.470017]
[1747783145232,0.87783436,2540.2,2540.1,6.470017]
[1747783146735,2.84622436,2540.2,2540.1,6.470017]
[1747783146930,2.96073436,2540.2,2540.1,6.470017]
[1747783147126,2.96073436,2540.2,2540.1,4.5255]
[1747783147533,0.7872,2539.9,2539.8,3.9495]
[1747783147730,0.90171,2539.9,2539.8,3.2078]
[1747783147925,0.78723,2539.8,2539.7,0.00590226]
[1747783148235,16.64774,2539.8,2539.7,0.00590226]
[1747783148848,0.90174,2539.8,2539.7,1.32320226]
[1747783149034,16.64774,2539.8,2539.7,3.26771926]
[1747783149229,16.64774,2539.8,2539.7,1.32320226]
[1747783149532,16.64774,2539.8,2539.7,3.26771926]
[1747783149743,16.64774,2539.8,2539.7,1.32320226]
[1747783149935,0.09072436,2540.2,2539.7,8.26771926]
[1747783150141,0.87783436,2540.2,2540.1,5.152317]
[1747783150441,0.99234436,2540.2,2540.1,5.152317]
[1747783150636,2.96073436,2540.2,2540.1,5.152317]
[1747783151143,2.96073436,2540.2,2540.1,3.2078]
[1747783151337,2.96073436,2540.2,2540.1,5.152317]
[1747783151731,2.96073436,2540.2,2540.1,3.2078]
[1747783151932,2.96073436,2540.2,2540.1,5.152317]
[1747783152242,2.96073436,2540.2,2540.1,3.2078]
[1747783152437,2.96073436,2540.2,2540.1,5.152317]
[1747783152744,2.96073436,2540.2,2539.8,4.5251]
[1747783152745,0.7872,2539.9,2539.8,4.5251]
[1747783153138,2.87033,2539.9,2539.8,6.469617]
[1747783153538,2.87033,2539.9,2539.8,4.5251]
[1747783153734,2.87033,2539.9,2539.8,6.469617]
[1747783153937,2.87033,2539.9,2539.8,3.2078]
[1747783154138,4.23853,2539.9,2539.8,5.152317]
[1747783154642,0.78723,2539.8,2539.7,0.00590226]
[1747783154846,0.90174,2539.8,2539.7,0.00590226]
[1747783155037,0.90174,2539.8,2539.7,1.95041926]
[1747783155636,0.90174,2539.8,2539.7,0.00590226]
[1747783155835,16.64874,2539.8,2539.7,1.95041926]
[1747783156037,16.64874,2539.8,2539.7,0.00590226]
[1747783156347,16.64874,2539.8,2539.7,1.95041926]
[1747783156542,16.64874,2539.8,2539.7,0.00590226]
[1747783157037,16.64874,2539.8,2539.7,1.95041926]
[1747783157342,16.64874,2539.8,2539.7,0.00590226]
[1747783158338,0.90174,2539.8,2539.7,0.00590226]
[1747783158539,16.64974,2539.8,2539.7,1.95041926]
[1747783158846,16.64974,2539.8,2539.5,2.38887]
[1747783158847,0.78729,2539.6,2539.5,2.38887]
[1747783159045,0.78748,2539.0,2538.9,1.3682]
[1747783159239,0.90202,2538.9,2538.8,0.32904264]
[1747783159744,0.78757,2538.7,2538.6,0.51592042]
[1747783160044,0.78757,2538.7,2538.6,0.52182268]
[1747783160045,0.90208,2538.7,2538.6,0.52182268]
[1747783160251,2.87163,2538.7,2538.6,0.52182268]
[1747783160636,2.87163,2538.7,2538.6,0.00590226]
[1747783161143,18.62263,2538.7,2538.6,0.00590226]
[1747783161347,18.62263,2538.7,2538.3,1.3483]
[1747783161348,0.78766,2538.4,2538.3,1.3483]
[1747783161544,0.90217,2538.4,2538.3,1.3483]
[1747783161732,1.96925,2538.3,2537.8,3.2078]
[1747783161935,0.78779,2538.0,2537.9,1.3483]
[1747783162542,2.872395,2538.0,2537.9,1.3483]
[1747783165241,18.006395,2538.0,2537.9,1.3483]
[1747783166246,18.006395,2538.0,2537.9,6.3483]
[1747783166247,15.134,2538.0,2537.9,6.3483]
[1747783166542,15.134,2538.0,2537.9,2.13612]
[1747783166943,15.92179,2538.0,2537.9,1.3483]
[1747783167339,1.96906,2538.6,2537.9,1.3483]
[1747783167542,15.92273,2538.3,2538.1,3.2078]
[1747783167748,0.78776,2538.1,2538.0,0.7803]
[1747783167941,1.96949,2538.0,2537.7,0.00590226]
[1747783168142,0.11451,2538.0,2537.7,0.79377226]
[1747783168341,0.78785,2537.8,2537.7,0.00590226]
[1747783168547,0.78785,2537.8,2537.7,0.79378226]
[1747783168845,0.78785,2537.8,2537.7,0.00590226]
[1747783169050,0.78785,2537.8,2537.7,0.79378226]
[1747783169547,0.78784,2537.9,2537.8,0.78782]
[1747783170151,0.90235,2537.9,2537.8,0.78785]
[1747783170345,16.03935,2537.9,2537.8,0.78785]
[1747783170648,0.78785,2537.8,2537.7,0.79377226]
[1747783170950,0.78785,2537.8,2537.7,0.00590226]
[1747783171360,0.90236,2537.8,2537.7,0.00590226]
[1747783171549,2.87261,2537.8,2537.7,0.00590226]
[1747783171847,4.24801,2537.8,2537.7,0.00590226]
[1747783172241,7.45581,2537.8,2537.7,0.00590226]
[1747783173549,7.45581,2537.8,2537.2,3.2078]
[1747783173550,0.788,2537.3,2537.2,3.2078]
[1747783173750,16.04051,2537.3,2537.2,3.2078]
[1747783173950,18.01115,2537.3,2537.2,3.2078]
[1747783175057,0.78807,2537.1,2537.0,0.00590226]
[1747783175255,0.90258,2537.1,2537.0,0.00590226]
[1747783175450,2.758865,2537.1,2537.0,0.00590226]
[1747783176448,2.873375,2537.1,2537.0,0.00590226]
[1747783177952,3.612475,2537.1,2537.0,0.00590226]
[1747783178152,8.612475,2537.1,2537.0,0.00590226]
[1747783178457,0.78827,2536.5,2536.3,3.2078]
[1747783178659,0.11451,2536.6,2536.3,3.2078]
[1747783178844,0.11451,2536.8,2536.6,3.2078]
[1747783179043,15.92819,2536.7,2536.6,3.996]
[1747783179249,15.142,2536.7,2536.6,3.2078]
[1747783179452,15.142,2536.7,2536.6,3.99602]
[1747783179961,15.142,2536.8,2536.7,0.78819]
[1747783180452,15.142,2537.0,2536.9,0.78813]
[1747783180659,15.9301,2537.0,2536.9,3.2078]
[1747783181356,15.142,2537.2,2537.1,0.78807]
[1747783181563,15.93001,2537.3,2537.2,0.78804]
[1747783181854,0.00590226,2537.5,2537.2,0.78804]
[1747783181855,0.00590226,2537.5,2537.4,0.78797]
[1747783182861,0.87273477,2537.8,2537.3,3.44936]
[1747783183155,0.87271477,2537.8,2537.7,3.2078]
[1747783183855,2.84296477,2537.8,2537.7,3.2078]
[1747783184250,0.87271477,2537.8,2537.7,3.2078]
[1747783185853,0.08486477,2537.8,2537.7,3.2078]
[1747783186054,2.05511477,2537.8,2537.7,4.6103]
[1747783186254,0.08486477,2537.8,2537.7,5.39818]
[1747783187253,0.08486477,2537.8,2537.7,4.6103]
[1747783187453,0.08486477,2537.8,2537.7,5.39818]
[1747783187657,0.08486477,2537.8,2537.7,4.6103]
[1747783187956,0.87271477,2537.8,2537.7,4.6103]
[1747783188450,0.77021216,2537.8,2537.7,4.6103]
[1747783189260,0.85507693,2537.8,2537.7,5.39818]
[1747783189559,0.85507693,2537.8,2537.7,4.6103]
[1747783190156,0.08486477,2537.8,2537.7,5.39818]
[1747783190351,0.98722477,2537.8,2537.7,4.6103]
[1747783190561,4.35377477,2537.8,2537.7,4.6103]
[1747783191160,4.35377477,2537.8,2537.7,5.39818]
[1747783192461,4.35377477,2537.8,2537.7,3.52304243]
[1747783192657,2.95747477,2537.8,2537.7,3.52304243]
[1747783193163,2.95747477,2537.8,2537.7,3.2078]
[1747783193762,2.16962477,2537.8,2537.7,3.2078]
[1747783193954,0.78791,2537.6,2537.5,1.3434]
[1747783194152,2.084915,2537.6,2537.2,0.24385705]
[1747783194358,0.90252,2537.3,2537.2,0.24385705]
[1747783194558,15.35852,2537.3,2537.2,0.24385705]
[1747783194761,60.18476,2537.3,2537.2,0.24385705]
[1747783194961,59.39675,2537.3,2536.7,1.3903]
[1747783195265,0.11451,2537.0,2536.9,0.78811]
[1747783195453,0.11451,2537.0,2536.9,3.99591]
[1747783195654,2.08538001,2537.0,2536.9,3.99591]
[1747783196661,1.96996,2537.4,2536.9,3.99591]
[1747783196662,2.28614917,2538.9,2537.9,0.78782]
[1747783196851,7.14483,2539.3,2537.9,5.96649191]
[1747783196852,3.2078,2539.3,2537.9,5.96649191]
[1747783197050,0.78766,2538.5,2537.9,10.96649191]
[1747783197265,0.78766,2538.5,2537.9,12.30569191]
[1747783198069,14.457,2538.7,2537.9,12.62101708]
[1747783198360,0.78766,2538.5,2537.9,12.62101708]
[1747783198868,0.78767,2538.4,2537.9,12.62101708]
[1747783199158,14.457,2538.7,2537.9,7.62101708]
[1747783199364,0.79370401,2538.0,2537.9,6.83319708]
[1747783200073,0.79370401,2538.0,2537.9,6.51787191]
[1747783200363,0.79370401,2538.0,2537.9,7.30569191]
[1747783200961,0.78783,2537.9,2537.7,0.00591401]
[1747783201160,1.97600901,2538.0,2537.9,4.15049191]
[1747783201161,0.00591401,2538.0,2537.9,4.15049191]
[1747783201361,0.00591401,2538.0,2537.9,7.35829191]
[1747783202971,0.00591401,2538.0,2537.9,7.67347804]
[1747783203571,0.00591401,2538.0,2537.9,12.67347804]
[1747783203760,14.454,2538.5,2538.4,0.78766]
[1747783203961,54.177,2538.9,2538.4,5.17867191]
[1747783204269,0.97405116,2539.6,2538.8,5.17867191]
[1747783204468,1.96831,2539.5,2539.3,3.2078]
[1747783204661,1.96847,2539.3,2539.1,0.00591401]
[1747783204862,16.60852,2539.2,2539.1,0.00591401]
[1747783205365,0.78751,2538.9,2538.8,3.2078]
[1747783205671,3.2078,2539.1,2538.1,3.2078]
[1747783205876,1.96901,2538.6,2538.1,5.17867191]
[1747783206173,0.78773,2538.2,2538.1,3.2078]
[1747783206561,2.75767,2538.2,2538.1,3.2078]
[1747783206766,6.96994,2538.2,2537.7,1e-08]
[1747783207067,1.401,2538.1,2537.8,1.97087191]
[1747783207261,0.78782,2537.9,2537.8,1.3701]
[1747783207665,2.75799,2537.9,2537.8,1.3701]
[1747783208076,1.97017,2537.9,2537.8,1.3701]
[1747783208281,2.75799,2537.9,2537.8,1.3701]
[1747783208464,0.78788,2537.7,2537.6,0.00591401]
[1747783208965,2.758205,2537.7,2537.6,0.00591401]
[1747783210568,17.212205,2537.7,2537.6,0.00591401]
[1747783211166,17.212205,2537.7,2537.6,1.97678592]
[1747783211860,17.212205,2537.7,2537.6,0.00591401]
[1747783212263,22.212205,2537.7,2537.6,4.01e-06]
[1747783212667,24.341005,2537.7,2537.6,4.01e-06]
[1747783212975,24.341005,2537.7,2536.0,3.2078]
[1747783212976,0.78832,2536.3,2536.0,3.2078]
[1747783213166,15.24232,2536.3,2536.0,3.9484]
[1747783213371,17.213735,2536.3,2536.2,2.71769964]
[1747783213570,17.213735,2536.3,2536.2,1.97087191]
[1747783213872,20.421535,2536.3,2536.2,1.97087191]
[1747783214078,0.78838,2536.1,2536.0,0.00399318]
[1747783214672,2.75995,2536.1,2536.0,0.00399318]
[1747783215064,2.75995,2536.1,2536.0,1.97486509]
[1747783215268,18.54505,2536.1,2536.0,1.97486509]
[1747783215474,17.21795,2536.1,2536.0,1.97486509]
[1747783216277,17.21795,2536.1,2536.0,0.00399318]
[1747783217165,17.21795,2536.1,2536.0,1.97486509]
[1747783217367,17.21795,2536.1,2536.0,0.00399318]
[1747783217768,15.24638,2536.1,2536.0,1.97486509]
[1747783218673,15.24638,2536.1,2536.0,0.00399318]
[1747783218674,17.21795,2536.1,2536.0,0.00399318]
[1747783219071,23.40059,2536.1,2535.1,0.31547844]
[1747783219273,0.78857,2535.5,2535.4,1.3824]
[1747783219477,15.26157,2535.5,2535.4,2.50511509]
[1747783219672,15.26157,2535.5,2535.4,1.3824]
[1747783219974,16.55307,2535.5,2535.4,1.3824]
[1747783220376,16.55307,2535.5,2535.4,2.50511509]
[1747783220681,16.55307,2535.5,2535.4,1.3824]
[1747783221867,16.55307,2535.5,2535.4,2.50511509]
[1747783222280,16.55307,2535.5,2535.4,1.3824]
[1747783222481,0.78862,2535.4,2535.0,0.7497]
[1747783222681,0.78862,2535.4,2535.1,2.11108]
[1747783222983,0.78862,2535.4,2535.3,1.12271509]
[1747783223483,0.78863,2535.3,2535.2,1.3224]
[1747783223981,0.78863,2535.3,2534.1,13.62047844]
[1747783223982,3.2078,2533.8,2532.4,3.26504566]
[1747783224193,3.2078,2532.7,2532.4,2.11584566]
[1747783224377,3.2078,2532.7,2532.5,1.3415]
[1747783224877,3.2078,2532.7,2532.5,3.315755]
[1747783226286,3.99724,2532.7,2532.5,3.315755]
[1747783226482,3.2078,2532.7,2532.5,3.315755]
[1747783226688,0.78947,2532.6,2532.5,1.3415]
[1747783227084,2.76376501,2532.6,2532.5,1.3415]
[1747783227377,18.48376501,2532.6,2532.5,1.3415]
[1747783228383,0.78957,2532.3,2531.9,2.53335265]
[1747783228585,17.69429501,2532.6,2531.9,2.53335265]
[1747783228586,0.78962,2532.1,2532.0,1.319]
[1747783228888,3.99742,2532.1,2532.0,1.319]
[1747783229081,5.972105,2532.1,2532.0,1.319]
[1747783229285,21.692105,2532.1,2532.0,1.319]
[1747783232281,1.97416,2532.0,2531.0,1.5731]
[1747783232481,0.78991,2531.2,2531.1,1.3094]
[1747783232676,3.99771,2531.2,2531.1,1.3094]
[1747783232891,3.99771,2531.2,2531.1,3.284785]
[1747783233388,5.973095,2531.2,2531.1,1.3094]
[1747783233585,3.99771,2531.2,2531.1,3.284785]
[1747783233787,3.99771,2531.2,2531.1,1.3094]
[1747783233986,3.99771,2531.2,2531.1,3.284785]
[1747783235490,3.2078,2531.2,2531.1,3.284785]
[1747783235791,3.99771,2531.2,2531.1,3.284785]
[1747783236576,15.731,2531.4,2531.1,3.284785]
[1747783236577,1.97458,2531.5,2531.1,3.284785]
[1747783236784,3.2078,2531.2,2530.6,4.0075]
[1747783237084,0.79001,2530.9,2530.7,0.79004]
[1747783237389,0.79003,2530.9,2530.7,0.79004]
[1747783237578,15.7404,2531.7,2530.7,8.95078]
[1747783237579,3.2078,2531.5,2530.7,8.95078]
[1747783237781,0.79,2531.0,2530.6,4.0075]
[1747783237981,3.2078,2531.5,2530.6,4.79757]
[1747783237982,1.97462,2531.4,2530.6,4.79757]
[1747783238184,0.79006,2530.7,2530.6,0.7997]
[1747783238379,0.79005,2530.8,2530.6,0.7997]
[1747783238588,1.97493,2531.0,2530.6,0.7997]
[1747783239093,0.79006,2530.7,2530.6,0.7997]
[1747783239785,0.79016,2530.4,2530.3,0.7535]
[1747783239985,3.99796,2530.4,2530.3,0.7535]
[1747783240187,3.99796,2530.4,2530.3,2.72951]
[1747783240389,3.99796,2530.4,2530.3,0.7535]
[1747783240590,3.99796,2530.4,2530.3,2.72951]
[1747783240789,3.2078,2530.7,2530.6,0.79006]
[1747783241005,0.79012,2530.5,2530.4,1.3634]
[1747783241490,1.97511,2530.8,2530.4,3.339335]
[1747783241491,1.97508,2530.8,2530.4,3.339335]
[1747783241686,0.79012,2530.5,2530.4,1.3634]
[1747783241887,0.79011,2530.6,2530.4,1.3634]
[1747783242390,0.79012,2530.5,2530.4,4.129425]
[1747783242589,0.7901,2530.6,2530.5,0.7901]
[1747783242788,15.74,2530.9,2530.4,1.3634]
[1747783242989,0.79011,2530.6,2530.5,0.79011]
[1747783243395,0.79011,2530.6,2530.5,1.975855]
[1747783243985,0.79011,2530.6,2530.5,1.3247]
[1747783245094,3.2078,2530.7,2530.6,0.79009]
[1747783245290,3.2078,2530.7,2530.5,3.300515]
[1747783245594,3.2078,2530.7,2530.6,0.79009]
[1747783246092,3.2078,2530.7,2530.6,2.765865]
[1747783247387,18.9508,2531.0,2530.6,1.975775]
[1747783247688,18.9508,2531.0,2530.7,1.3052]